[Event "21st Bangkok CC Open 2024"]
[Site "Bangkok"]
[Date "2024.04.19"]
[Round "7.2"]
[White "Zhao, Zong-Yuan"]
[Black "Cao, Qingfeng"]
[Result "1-0"]
[ECO "B15"]
[WhiteElo "2485"]
[BlackElo "2038"]
[Annotator "TA"]
[PlyCount "67"]
[EventDate "2024.04.13"]
[EventType "swiss"]
[EventCountry "THA"]
[SourceTitle "playchess.com"]
[Source "ChessBase"]
[SourceQuality "1"]
[TimeControl "40/5400+30:1800+30"]

{[%evp 15,67,14,17,35,51,34,28,29,31,27,33,33,23,23,20,0,120,145,203,0,219,64,185,187,175,172,406,401,734,729,731,737,712,708,698,703,669,644,959,946,945,937,1184,1181,1234,1233,1201,1134,1006,984,2137,2160,1769,1528]} 1. e4 {[%emt 0:04:36]} c6 {[%emt 0:00:30]} 2. d4 {[%emt 0:00:05]} d5 {[%emt 0:00:06]} 3. Nc3 {[%emt 0:00:08]} dxe4 {[%emt 0:00:49]} 4. Nxe4 {[%emt 0:00:05]} Nf6 {[%emt 0:01:45]} 5. Nxf6+ {[%emt 0:00:05]} exf6 {[%emt 0:00:06]} 6. c3 {[%emt 0:00:30]} Bd6 {[%emt 0:00:24]} 7. Bd3 {[%emt 0:00:05]} O-O {[%emt 0:00:18]} 8. Ne2 {[%emt 0:00:20]} Re8 {[%emt 0:00:57]} 9. Qc2 {[%emt 0:00:13]} h5 {[%emt 0:01:49]} 10. O-O {[%emt 0:00:16]} h4 {[%emt 0:00:53]} 11. Nf4 {[%emt 0:00:43] White has an edge.} Qc7 {[%emt 0:05:13]} 12. g3 {[%emt 0:00:36]} Nd7 {[%emt 0:02:33]} 13. Qd1 {[%emt 0:00:25]} Nf8 {[%emt 0:10:50]} 14. Qh5 {[%emt 0:02:25]} Qd7 {[%emt 0:02:27]} 15. f3 {[%emt 0:12:33]} (15. gxh4 Bxf4 16. Bxf4 Qh3) (15. Qxh4 $2 g5 16. Qh6 gxf4 17. Qxf6 Qd8 18. Qxd8 Rxd8 $19) 15... g5 {[%emt 0:14:33]} (15... c5 $11) 16. gxh4 $1 $16 {[%emt 0:21:21][%cal Og1h1] Threatens to win with Kh1! White is much more active.} gxf4 {[%emt 0:02:28] [#]} (16... Bxf4 $16 17. Bxf4 gxf4) 17. Kh1 $2 {[%emt 0:00:15]} ({White has to play} 17. Kf2 $1 $18 Qe6 18. Bd2) 17... f5 $2 {[%emt 0:02:25]} (17... Ng6 $1 $11 18. Bxg6 Re2 (18... fxg6 $2 19. Qxg6+ Kh8 20. Qh5+ Qh7 21. Qxe8+ $18) 19. Bh7+ (19. Bd3 Rxh2+ 20. Kxh2 Qh3+ 21. Kg1 Qg3+ 22. Kh1 Qh3+ 23. Kg1 Qg3+ 24. Kh1 Qh3+ 25. Kg1 $11) 19... Kf8) 18. Rg1+ {[%emt 0:02:26]} Ng6 {[%emt 0:00:07] Black cannot hold the game after this.} 19. Rxg6+ {[%emt 0:04:21]} fxg6 {[%emt 0:00:34]} 20. Qxg6+ {[%emt 0:00:03]} Kh8 $2 {[%emt 0:02:06]} (20... Kf8 21. Qf6+ Qf7 (21... Kg8 $2 22. Bxf4 Qg7 23. Qxd6 $18) 22. Qxd6+ Qe7 23. Qxe7+ (23. Bxf4 Qxd6 24. Bxd6+ Kf7 $18) (23. Qxf4 Qe1+ 24. Kg2 Re2+ 25. Bxe2 Qxe2+ 26. Kg3 Qe1+ 27. Kg2 Qe2+ 28. Kg3 Qe1+ 29. Kg2 Qe2+ $11) 23... Kxe7 24. Bxf4 Be6) 21. Qh5+ $18 {[%emt 0:05:43]} Kg7 {[%emt 0:20:50] [#]} (21... Qh7 $142 22. Qxe8+ Qg8 23. Qh5+ (23. Qxg8+ Kxg8 24. Bc4+ Kh7 $16) 23... Qh7) 22. Bd2 $1 {[%emt 0:03:05] White is clearly winning.} Qe6 {[%emt 0:12:03] Inhibits Bc4.} 23. Rg1+ {[%emt 0:10:02]} (23. Re1 Qxe1+ 24. Bxe1 Rxe1+ $17) 23... Kf8 {[%emt 0:00:11][%cal Bg7f8,Bf8e7,Be7d8,Bd8c7][%mdl 32]} 24. Qh7 {[%emt 0:02:09]} Qf7 {[%emt 0:00:26] Prevents Qg7+.} 25. Qh6+ {[%emt 0:00:14]} Ke7 {[%emt 0:00:04]} 26. Rg7 {[%emt 0:00:08]} (26. Bxf4 $2 {is the wrong capture.} Bxf4 27. Qxf4 Kd8 $19 (27... Qxa2 $2 28. Rg7+ $18)) 26... Qxg7 {[%emt 0:02:34]} 27. Qxg7+ {[%emt 0:00:05]} Kd8 {[%emt 0:00:05]} 28. h5 {[%emt 0:04:39]} Re7 {[%emt 0:07:35]} 29. Qf6 {[%emt 0:04:01][%csl LRd6,LRf5]} Kc7 {[%emt 0:01:16]} 30. c4 {[%emt 0:00:23][%cal Oc4c5]} Re6 {[%emt 0:02:56]} 31. Qg7+ {[%emt 0:01:41]} (31. Qxf5 Re1+ 32. Bxe1 Bxf5 33. Bxf5 Kd8 $18) 31... Re7 {[%emt 0:00:07]} 32. Qg5 {[%emt 0:00:24][%cal Oc4c5] c5! would kill now.} c5 {[%emt 0:00:36]} 33. dxc5 {[%emt 0:01:15]} Bxc5 {[%emt 0:00:06]} 34. b4 {[%emt 0:02:31] Weighted Error Value: White=0.33/Black=0.61.  Loses game:     	---       	Black=1      Missed win:     	White=1     	---        Mistake:       	---       	Black=4      Inaccurate:     	---       	Black=1      OK:         	White=5     	Black=4      Best:        	White=1     	---        Strong:       	White=2     	---} 1-0

[Event "21st Bangkok CC Open 2024"]
[Site "Bangkok"]
[Date "2024.04.19"]
[Round "7.3"]
[White "Pham Tran Gia Phuc"]
[Black "Danilenko, Dmitriy"]
[Result "1/2-1/2"]
[ECO "D02"]
[WhiteElo "2423"]
[BlackElo "2400"]
[Annotator "TA"]
[PlyCount "87"]
[EventDate "2024.04.13"]
[EventType "swiss"]
[EventCountry "THA"]
[SourceTitle "playchess.com"]
[Source "ChessBase"]
[SourceQuality "1"]
[TimeControl "40/5400+30:1800+30"]

{[%evp 9,87,-2,12,8,9,8,10,12,7,0,0,7,0,-12,0,-8,-10,-23,-25,-21,-19,-25,0,0,0,-8,0,-16,0,-7,1,0,30,35,54,22,28,26,52,43,74,0,0,0,0,0,0,0,0,-4,-6,-300,-193,-187,-183,-168,-183,-179,-183,-179,-187,-177,-170,-178,-122,-112,-115,-115,-115,-122,-122,-122,-122,-115,0,0,0,0,0,0]} 1. d4 {[%emt 0:00:05]} d5 {[%emt 0:03:13]} 2. Bf4 {[%emt 0:00:19]} Nf6 {[%emt 0:00:24]} 3. Nf3 {[%emt 0:00:06]} c5 {[%emt 0:00:04]} 4. e3 {[%emt 0:00:04]} e6 {[%emt 0:00:13]} 5. c3 {[%emt 0:00:05]} Bd6 {[%emt 0:00:16]} 6. Bd3 {[%emt 0:00:14]} Bxf4 {[%emt 0:02:28]} 7. exf4 {[%emt 0:00:07]} Qc7 {[%emt 0:00:15]} 8. g3 {[%emt 0:00:31]} b6 {[%emt 0:00:21]} 9. Nbd2 {[%emt 0:01:52]} O-O {[%emt 0:00:08]} 10. Qe2 {[%emt 0:00:14]} a5 {[%emt 0:00:05]} 11. h4 {[%emt 0:02:07]} Ba6 {[%emt 0:00:39]} 12. Bxa6 {[%emt 0:00:07]} Nxa6 {[%emt 0:00:29]} 13. h5 {[%emt 0:03:05]} h6 {[%emt 0:04:27]} 14. Kf1 {[%emt 0:01:53]} b5 {[%emt 0:22:42]} 15. Kg2 {[%emt 0:12:15]} cxd4 {[%emt 0:07:45]} 16. cxd4 {[%emt 0:00:37]} Qb6 {[%emt 0:00:50]} 17. a3 {[%emt 0:04:08]} Rfc8 {[%emt 0:01:51]} 18. Qd3 {[%emt 0:03:14] Wards off Rc2} a4 {[%emt 0:10:25]} 19. Ne5 {[%emt 0:13:45]} Nb8 {[%emt 0:03:56]} 20. Rac1 {[%emt 0:12:09]} Nc6 {[%emt 0:05:21]} 21. Rc5 $1 {[%emt 0:04:19]} Na7 {[%emt 0:16:52]} (21... Nxd4 $2 22. Rhc1 Rxc5 23. Qxd4 $18) 22. Qc2 {[%emt 0:10:33]} Qb7 {[%emt 0:04:25]} (22... Qd8 {feels hotter.} 23. Rc1 Nxh5 24. Rc7 Nf6) 23. Rc1 {[%emt 0:06:52]} Rxc5 {[%emt 0:01:58]} 24. dxc5 {[%emt 0:00:16]} (24. Qxc5 Rc8 $11 (24... Nxh5 25. Qc7 $14) (24... Nxh5 25. Qc7 $16)) 24... Rc8 {[%emt 0:03:14]} 25. Ndf3 {[%emt 0:03:52] White is more active.} ({White should play} 25. c6 $16 Qb6 26. f5) 25... Ne4 $1 $11 {[%emt 0:00:22]} 26. Nd3 {[%emt 0:04:52]} Nc6 {[%emt 0:01:24]} 27. Nb4 {[%emt 0:06:07]} Na5 {[%emt 0:00:32]} 28. c6 {[%emt 0:00:07]} Qb6 {[%emt 0:00:13][%cal Oa5c6]} 29. f5 {[%emt 0:00:08]} Nxc6 {[%emt 0:03:15][%cal Oc6d8] Threatens to win with ...Nd8!} 30. Ne5 $2 {[%emt 0:06:26][%mdl 8192]} (30. Nxc6 $2 Rxc6 (30... exf5 $2 {loses.} 31. Ne7+ Kh7 32. Nxc8 $18) 31. Ne5 Rxc2 $19) (30. Qe2 $1 $11 {and White stays safe.}) 30... Ne7 {[%emt 0:02:52]} 31. Qxc8+ {[%emt 0:00:17]} Nxc8 {[%emt 0:00:01]} 32. Rxc8+ {[%emt 0:00:12]} Kh7 {[%emt 0:00:01]} 33. Nbd3 {[%emt 0:00:07][%cal Oe5g6] Threatening mate with Ng6!} Nd6 $1 {[%emt 0:00:59]} (33... exf5 $2 {is the wrong capture.} 34. Nd7 Qb7 35. Nf8+ Kg8 36. Ng6+ Qxc8 37. Ne7+ Kh7 38. Nxc8 $18) 34. Rc6 {[%emt 0:01:32]} Qd8 {[%emt 0:02:03]} 35. fxe6 {[%emt 0:00:09]} fxe6 {[%emt 0:00:28]} 36. Nf4 {[%emt 0:00:08]} d4 {[%emt 0:02:05]} (36... Nc4 $1 $19 {[%cal Rc4e5]} 37. Rxe6 d4 (37... Nxb2 38. Neg6 $11)) 37. Nxe6 $17 {[%emt 0:00:21] [#]} Qa8 {[%emt 0:00:55]} 38. Nxd4 {[%emt 0:00:57]} Nc4 {[%emt 0:00:55]} 39. Nxc4 {[%emt 0:00:29]} bxc4 {[%emt 0:00:05]} 40. Kg1 {[%emt 0:00:51] [#]} Qg8 {[%emt 0:01:24]} 41. Rc5 {[%emt 0:33:50] Against Qd5} Qe8 {[%emt 0:08:39]} ({Black should try} 41... Qf7 $17 {[%cal Oc4c3]} 42. Nc2 Qb7 43. Rxc4 Qxb2) 42. Rxc4 $11 {[%emt 0:00:00] The position is equal.} Qxh5 {[%emt 0:00:30]} 43. Rb4 $1 {[%emt 0:00:00]} Qd1+ {[%emt 0:01:50]} 44. Kg2 {[%emt 0:00:00] Weighted Error Value: White=0.12 (very precise) /Black=0.16 (very precise) .  Loses game:     	White=1     	---        Mistake:       	White=1     	Black=2      Inaccurate:     	White=1     	Black=4      OK:         	White=16    	Black=11     Best:        	White=5     	Black=2      Strong:       	White=2     	Black=2} 1/2-1/2

[Event "21st Bangkok CC Open 2024"]
[Site "Bangkok"]
[Date "2024.04.19"]
[Round "7.4"]
[White "Ritviz, Parab"]
[Black "Harsh Suresh"]
[Result "1/2-1/2"]
[ECO "B54"]
[WhiteElo "2346"]
[BlackElo "2413"]
[Annotator "TA"]
[PlyCount "88"]
[EventDate "2024.04.13"]
[EventType "swiss"]
[EventCountry "THA"]
[SourceTitle "playchess.com"]
[Source "ChessBase"]
[SourceQuality "1"]
[TimeControl "40/5400+30:1800+30"]

{[%evp 16,88,2,-27,-23,-38,-31,-41,-33,-23,-15,-20,-30,-35,-30,-31,-27,-33,-40,-36,-30,-31,-23,-22,-24,-17,-20,-83,-87,-99,-99,-99,-98,-115,-105,-112,-115,-120,-114,-120,-115,-124,-133,-128,-129,-130,-38,-30,-52,-39,-8,-12,-9,-17,0,0,0,0,0,0,0,0,0,0,0,0,0,0,0,0,0,0,0,0,0]} 1. e4 {[%emt 0:06:56]} c5 {[%emt 0:00:26]} 2. Nf3 {[%emt 0:00:17]} d6 {[%emt 0:00:11]} 3. Bb5+ {[%emt 0:00:26]} Bd7 {[%emt 0:00:14]} 4. c4 {[%emt 0:00:18]} Nf6 {[%emt 0:08:46][%cal Bg8f6,Bf6g4,Bg4e3][%mdl 32]} 5. Nc3 {[%emt 0:00:07]} g6 {[%emt 0:00:15]} 6. O-O {[%emt 0:00:27]} Bg7 {[%emt 0:00:13]} 7. d4 {[%emt 0:00:14]} cxd4 {[%emt 0:01:00]} 8. Nxd4 {[%emt 0:00:08]} Nc6 {[%emt 0:05:05]} 9. Be3 {[%emt 0:12:20]} Ng4 {[%emt 0:31:03]} 10. Nxc6 {[%emt 0:06:18]} bxc6 {[%emt 0:04:17]} 11. Bxc6 {[%emt 0:00:39]} Nxe3 {[%emt 0:00:17] Black is slightly better.} 12. Bxd7+ {[%emt 0:00:08]} Qxd7 {[%emt 0:00:03]} 13. fxe3 {[%emt 0:00:08]} Bxc3 {[%emt 0:00:15]} 14. bxc3 {[%emt 0:00:07]} Rc8 {[%emt 0:00:57]} 15. Qd4 {[%emt 0:28:07] Inhibits Rc5.} O-O {[%emt 0:00:41]} 16. e5 {[%emt 0:00:53]} Rc6 {[%emt 0:22:57]} 17. Rad1 {[%emt 0:10:22]} Qc7 {[%emt 0:02:32][%csl LRc4,LRe5] Inhibits c5.} (17... Rfc8 {seems wilder.} 18. Qd5 Qe8 19. exd6 Rxd6 20. Qb7 Rxc4 21. Qxa7 Qd8) 18. exd6 {[%emt 0:02:19]} Rxd6 {[%emt 0:00:18]} 19. Qf4 {[%emt 0:01:43]} Rc6 {[%emt 0:00:54]} 20. Qxc7 {[%emt 0:07:11]} Rxc7 $11 {[%emt 0:00:21][%mdl 4096] Endgame. KRR-KRR} 21. Rb1 {[%emt 0:15:19]} (21. Rf4 $11 {remains equal.}) 21... Rd8 $17 {[%emt 0:03:49]} 22. Rfd1 {[%emt 0:01:13]} Rxd1+ {[%emt 0:00:18]} 23. Rxd1 {[%emt 0:00:02]} Rxc4 {[%emt 0:00:02] KR-KR} 24. Rc1 {[%emt 0:00:53]} Kg7 {[%emt 0:00:22]} 25. Kf2 {[%emt 0:00:02][%cal Og2g4]} Kf6 {[%emt 0:00:06]} 26. Ke2 {[%emt 0:00:03]} Ke5 {[%emt 0:00:17]} 27. Kd3 {[%emt 0:00:06]} Ra4 {[%emt 0:00:25]} 28. Rc2 {[%emt 0:00:31]} f5 {[%emt 0:03:40]} 29. Rb2 {[%emt 0:06:31]} Kd5 {[%emt 0:00:50]} 30. Rb7 {[%emt 0:01:07]} e5 {[%emt 0:00:18]} ({Reject} 30... Rxa2 $6 31. Rxe7 h5 (31... Rxg2 32. Rxh7 g5 33. h4 $11) 32. g3 $11) (30... Ke6 $17 31. Rb2 Kd5) 31. c4+ $1 $15 {[%emt 0:00:26]} Ke6 {[%emt 0:07:03]} 32. Rxh7 {[%emt 0:00:03]} Ra3+ {[%emt 0:01:45]} 33. Ke2 {[%emt 0:00:32] The position is equal.} Rxa2+ {[%emt 0:02:21]} 34. Kf3 {[%emt 0:00:05]} e4+ {[%emt 0:00:33]} 35. Kg3 {[%emt 0:00:56]} a5 {[%emt 0:00:33]} 36. Ra7 {[%emt 0:00:52]} g5 {[%emt 0:01:33] aiming for ...Ra3.} 37. h4 {[%emt 0:00:32]} gxh4+ {[%emt 0:01:40]} 38. Kxh4 {[%emt 0:00:02]} Ra3 {[%emt 0:01:16]} 39. Kg5 {[%emt 0:00:29]} Rxe3 {[%emt 0:00:35] [#] Strongly threatening ...Rg3+.} 40. Ra6+ {[%emt 0:00:58]} (40. Rxa5 Rg3+ 41. Kf4 Rg4+ (41... Rxg2 42. Re5+ Kd6 43. c5+ Kc6 44. Kxf5 $11) 42. Ke3 Rxg2 43. Ra6+ Ke5 44. Ra5+ Kf6 45. Ra6+ Kg5 $19) 40... Ke5 {[%emt 0:01:06]} 41. Rxa5+ {[%emt 0:30:11]} Kd4 {[%emt 0:30:07]} 42. Kxf5 {[%emt 0:00:42]} Rg3 {[%emt 0:00:00]} 43. Rd5+ {[%emt 0:00:00]} Kxc4 {[%emt 0:00:00]} 44. Kxe4 {[%emt 0:00:00]} Rxg2 {[%emt 0:00:00] Weighted Error Value: White=0.07 (flawless) /Black=0.08 (flawless) .  Mistake:       	White=1     	Black=1      Inaccurate:     	---       	Black=1      OK:         	White=14    	Black=12     Best:        	White=7     	Black=5      Strong:       	White=1     	---} 1/2-1/2

[Event "21st Bangkok CC Open 2024"]
[Site "Bangkok"]
[Date "2024.04.19"]
[Round "7.5"]
[White "Pranesh M"]
[Black "Dinh Nho Kiet"]
[Result "1-0"]
[ECO "B12"]
[WhiteElo "2538"]
[BlackElo "2245"]
[Annotator "TA"]
[PlyCount "99"]
[EventDate "2024.04.13"]
[EventType "swiss"]
[EventCountry "THA"]
[SourceTitle "playchess.com"]
[Source "ChessBase"]
[SourceQuality "1"]
[TimeControl "40/5400+30:1800+30"]

{[%evp 9,99,-28,-29,-42,0,0,0,0,0,0,0,0,0,0,24,31,105,111,96,102,102,96,120,117,111,29,30,31,39,25,72,64,79,80,69,70,77,18,65,20,21,8,8,0,21,25,14,0,55,37,216,233,218,206,191,0,308,295,730,718,621,241,240,44,44,43,5081,5081,29959,29952,29967,29966,29968,29969,29970,29971,29969,29971,29972,29972,29973,29973,29973,29974,29976,29977,29977,29978,29978,29979,29982,29982]} 1. e4 {[%emt 0:05:55][%cal Be2e4,Be4e5][%mdl 32]} c6 {[%emt 0:00:11]} 2. d4 {[%emt 0:00:05]} d5 {[%emt 0:00:06]} 3. e5 {[%emt 0:00:04]} Bf5 {[%emt 0:00:10]} 4. g4 {[%emt 0:00:08]} Be4 {[%emt 0:00:14]} 5. f3 {[%emt 0:00:04]} Bg6 {[%emt 0:00:08][%cal Oc6c5]} 6. e6 {[%emt 0:00:03]} Qd6 {[%emt 0:01:45]} 7. exf7+ {[%emt 0:00:05]} Bxf7 {[%emt 0:00:06]} 8. f4 {[%emt 0:00:04] The position is equal.} Nf6 {[%emt 0:01:25]} 9. Nc3 {[%emt 0:00:25]} Nbd7 {[%emt 0:10:35]} 10. Bh3 {[%emt 0:01:09]} g6 {[%emt 0:21:34]} 11. Nf3 {[%emt 0:00:59]} Bg7 {[%emt 0:00:19]} 12. Ne5 {[%emt 0:00:30]} Ne4 {[%emt 0:08:41]} (12... Be6 $14) 13. Nxf7 {[%emt 0:10:41]} Kxf7 {[%emt 0:00:07]} 14. Nxe4 {[%emt 0:00:37]} dxe4 {[%emt 0:00:03]} 15. c3 {[%emt 0:00:28]} c5 {[%emt 0:04:48][%cal Rc5d4]} 16. Qb3+ $1 {[%emt 0:02:55]} Ke8 {[%emt 0:02:32]} (16... e6 17. f5 Rhe8 18. fxe6+ (18. Qxb7 cxd4 19. f6 Bxf6 $11) 18... Qxe6 19. Rf1+ (19. Qxb7 cxd4 20. cxd4 Bxd4 $19) 19... Kg8 20. g5 (20. Qxb7 $2 Rab8 $19) 20... Qxb3 21. axb3 $18) 17. Be3 {[%emt 0:06:33]} (17. Qxb7 $6 Rb8 18. Qxe4 (18. Qxa7 cxd4 19. O-O dxc3 $19) 18... cxd4 $11) (17. d5 $1 $16) 17... cxd4 $11 {[%emt 0:00:41]} 18. cxd4 {[%emt 0:02:49]} Qb6 {[%emt 0:04:56]} 19. g5 {[%emt 0:13:57]} h6 {[%emt 0:10:21]} (19... Rd8 $11 {should be considered.}) 20. Be6 $16 {[%emt 0:04:17]} Qxb3 {[%emt 0:11:02]} 21. axb3 {[%emt 0:00:33]} (21. Bxb3 Rd8 $11) 21... Nf8 {[%emt 0:01:01]} 22. Bg4 {[%emt 0:04:00] White is much more active.} Rd8 {[%emt 0:02:29]} 23. Rd1 {[%emt 0:05:49]} (23. Rxa7 $16 Kf7 24. d5 (24. Rxb7 Ne6 $16)) 23... e6 {[%emt 0:01:04]} (23... Nd7 $11 {might be stronger.}) 24. Ke2 {[%emt 0:03:48]} Rd5 {[%emt 0:01:07]} 25. h4 {[%emt 0:02:39]} Rb5 {[%emt 0:02:53]} 26. Rc1 {[%emt 0:34:53]} Rxb3 {[%emt 0:00:44]} 27. Rc8+ {[%emt 0:00:00]} Ke7 $1 {[%emt 0:01:18] ...h5 is the strong threat.} (27... Kd7 $2 28. Rhc1 Kd6 29. d5 (29. R1c7 Nd7 $11) 29... Rxb2+ 30. Kf1 $18) 28. Rhc1 $36 {[%emt 0:00:00][%mdl 2048] White has the initiative.} Rxb2+ {[%emt 0:00:50]} (28... Nd7 29. d5 hxg5 (29... Rxb2+ $2 30. Kf1 $18) (29... exd5 $2 30. Rxh8 Bxh8 31. Rc7 $18) 30. Rxh8 Bxh8 (30... Rxb2+ $2 31. Kf1 $18) 31. hxg5 (31. dxe6 gxf4 32. Bxa7 f3+ 33. Ke1 Bxb2 $14) 31... Rxb2+ 32. Kf1 $18) ({Black should play} 28... hxg5 $11 29. d5 gxf4 (29... Rxb2+ $2 30. Kf1 $18) (29... Rxh4 $2 30. R1c7+ Kd6 31. Bc5+ Kxd5 32. Rd8+ Kc4 33. Bxf8+ Kb5 34. Rxb7+ Kc6 35. Rxb3 $18) (29... gxh4 $2 30. Bc5+ Kd7 31. Bxf8 $18) 30. Bxf4 Rxb2+ (30... exd5 $2 31. R1c7+ Kf6 32. Bg5+ Ke5 33. Rxg7 $18) 31. Kd1 Kf6 (31... exd5 $2 32. R1c7+ Kf6 33. Bg5+ Ke5 34. Rxg7 $18) 32. Bg5+ Ke5) 29. Kf1 $14 {[%emt 0:00:00]} (29. Ke1 Rb3 (29... Nd7 30. d5 $18) 30. Ke2 (30. R1c7+ Nd7 $15) 30... hxg5 $11) 29... Nd7 $2 {[%emt 0:03:49]} (29... Rb5 $1 $14) 30. Rxh8 $18 {[%emt 0:00:00]} Bxh8 {[%emt 0:00:01]} 31. d5 $1 {[%emt 0:00:00]} (31. gxh6 Nf6 32. Bd1 Kd7 $17 (32... Nd5 33. Bg1 $19)) 31... Rb3 {[%emt 0:04:29] [#]} 32. dxe6 $2 {[%emt 0:00:00]} (32. Rc7 $1 $18 Rxe3 33. dxe6 hxg5 (33... Rd3 $2 34. gxh6 Kd8 35. Rc8+ Kxc8 36. e7 $18) 34. exd7 (34. Rxd7+ Ke8 $18)) 32... Rxe3 $4 {[%emt 0:00:56][%mdl 8192]} (32... h5 $1 $11 33. Bxh5 (33. Bxa7 hxg4 34. exd7 Kxd7 $17) 33... gxh5 34. exd7 Rxe3) 33. Rc7 {[%emt 0:00:00]} Rd3 {[%emt 0:02:00]} (33... hxg5 34. exd7 (34. Rxd7+ Ke8 $18) 34... Bd4 (34... gxh4 $2 35. Rc8 $18)) 34. gxh6 $1 {[%emt 0:00:00]} (34. Rxd7+ Rxd7 35. exd7 hxg5 36. hxg5 Bd4 $11) (34. exd7 h5 35. d8=R+ Kxd8 36. Rc8+ Ke7 37. Bxh5 gxh5 $16) 34... Kd8 {[%emt 0:00:32]} 35. Rxb7 $2 {[%emt 0:00:00]} ({Weaker is} 35. Rxd7+ Rxd7 36. exd7 a5 $16) (35. Rc8+ Kxc8 36. e7 (36. exd7+ $2 {too greedy.} Kd8 $19)) 35... Nf6 {[%emt 0:02:39] [#]} 36. Rb8+ $2 {[%emt 0:00:00]} ({White must play} 36. Be2 $1 $18 {[%cal Re2d3]} Kc8 37. Rf7) 36... Ke7 $14 {[%emt 0:00:07] And now ...Rd8 would win.} 37. Rxh8 {[%emt 0:00:00]} Rd8 $2 {[%emt 0:02:43][%mdl 8192] Against h7} (37... Nxg4 $14 38. h7 Nf6 (38... Kxe6 $2 {loses.} 39. Re8+ Kd7 40. h8=Q $18)) 38. Rxd8 $18 {[%emt 0:00:00]} Kxd8 {[%emt 0:00:01][%mdl 4096] Endgame. [#] KB-KN} 39. h5 $1 {[%emt 0:00:00][%mdl 512] White mates.} gxh5 {[%emt 0:00:16]} 40. Bf5 {[%emt 0:02:11]} Ke7 {[%emt 0:00:07]} 41. h7 {[%emt 0:06:52]} Nxh7 {[%emt 0:00:15]} 42. Bxh7 {[%emt 0:00:04]} a5 {[%emt 0:08:12][%cal Ba7a5,Ba5a4,Ba4a3][%mdl 32]} 43. Bxe4 {[%emt 0:01:10]} Kxe6 {[%emt 0:00:01] KB-KPP} 44. Kf2 {[%emt 0:00:28]} a4 {[%emt 0:00:12]} 45. Bb1 {[%emt 0:00:15]} a3 {[%emt 0:10:50]} 46. Ke3 {[%emt 0:00:21]} Kf6 {[%emt 0:00:36]} 47. Ke4 {[%emt 0:00:06]} Ke6 {[%emt 0:00:20]} 48. Ba2+ {[%emt 0:00:05]} Kf6 {[%emt 0:00:09]} 49. Bd5 {[%emt 0:00:14]} Kg6 {[%emt 0:15:35]} 50. Ke5 {[%emt 0:30:14] Weighted Error Value: White=0.28 (precise) /Black=0.30.  Loses game:     	---       	Black=3      Missed win:     	White=1     	---        Mistake:       	White=2     	Black=5      Inaccurate:     	White=1     	Black=1      OK:         	White=13    	Black=8      Best:        	White=3     	Black=3      Strong:       	White=3     	Black=1} 1-0